fUSD/lending_fUSD_20250520
["ID","MTS","AMOUNT","RATE_DAILY","PERIOD"]
[361716927,1747721441230,-689.0,0.00012218,2]
[361716928,1747721441240,-500.0,0.00012245,2]
[361716929,1747721441249,-689.0,0.00012245,2]
[361716930,1747721441258,-500.0,0.0001225,2]
[361716931,1747721441269,-500.0,0.0001225,2]
[361716932,1747721441278,-500.0,0.0001225,2]
[361716933,1747721441288,-500.0,0.0001225,2]
[361716934,1747721441299,-500.0,0.0001225,2]
[361716935,1747721441309,-500.0,0.0001225,2]
[361716936,1747721441318,-500.0,0.0001225,2]
[361716937,1747721441327,-500.0,0.0001225,2]
[361716938,1747721441338,-500.0,0.0001225,2]
[361716939,1747721441348,-500.0,0.0001225,2]
[361716940,1747721441359,-500.0,0.0001225,2]
[361716941,1747721441370,-500.0,0.0001225,2]
[361716942,1747721441379,-500.0,0.0001225,2]
[361716943,1747721441389,-500.0,0.0001225,2]
[361716944,1747721441400,-500.0,0.0001225,2]
[361716945,1747721441410,-500.0,0.0001225,2]
[361716946,1747721441421,-500.0,0.0001225,2]
[361716947,1747721441430,-500.0,0.0001225,2]
[361716948,1747721441439,-500.0,0.0001225,2]
[361716949,1747721441449,-500.0,0.0001225,2]
[361716950,1747721441459,-500.0,0.0001225,2]
[361716951,1747721441468,-500.0,0.0001225,2]
[361716952,1747721441478,-500.0,0.0001225,2]
[361716953,1747721441487,-500.0,0.0001225,2]
[361716954,1747721441497,-500.0,0.0001225,2]
[361716955,1747721441506,-500.0,0.0001225,2]
[361716956,1747721441516,-500.0,0.0001225,2]
[361716957,1747721441526,-500.0,0.0001225,2]
[361716958,1747721441535,-500.0,0.0001225,2]
[361716959,1747721441545,-500.0,0.0001225,2]
[361716960,1747721441555,-500.0,0.0001225,2]
[361716961,1747721441565,-500.0,0.0001225,2]
[361716962,1747721441574,-500.0,0.0001225,2]
[361716963,1747721441584,-500.0,0.0001225,2]
[361716964,1747721441594,-500.0,0.0001225,2]
[361716965,1747721441604,-500.0,0.0001225,2]
[361716966,1747721441614,-500.0,0.0001225,2]
[361716967,1747721441624,-500.0,0.0001225,2]
[361716968,1747721441633,-500.0,0.0001225,2]
[361716969,1747721441643,-500.0,0.0001225,2]
[361716970,1747721441656,-500.0,0.0001225,2]
[361716971,1747721441666,-500.0,0.0001225,2]
[361716972,1747721441677,-500.0,0.0001225,2]
[361716973,1747721441687,-500.0,0.0001225,2]
[361716974,1747721441698,-500.0,0.0001225,2]
[361716975,1747721441709,-638.0,0.0001225,2]
[361716976,1747721441720,-500.0,0.0001225,2]
[361716977,1747721441730,-500.0,0.0001225,2]
[361716978,1747721441739,-500.0,0.0001225,2]
[361716979,1747721441750,-997.0,0.0001225,2]
[361716980,1747721441760,-2469.7943081,0.0001225,2]
[361716981,1747721441771,-500.0,0.00012273,2]
[361716982,1747721441782,-689.0,0.00012273,2]
[361716983,1747721441791,-500.0,0.000123,2]
[361716984,1747721441800,-689.0,0.000123,2]
[361716985,1747721441810,-340.14,0.000123,2]
[361716986,1747721441819,-150.0,0.000123,2]
[361716987,1747721441828,-500.0,0.00012327,2]
[361716988,1747721441838,-689.0,0.00012327,2]
[361716989,1747721441847,-500.0,0.00012355,2]
[361716990,1747721441857,-689.0,0.00012355,2]
[361716991,1747721441866,-166.38,0.00012375,2]
[361716992,1747721441875,-500.0,0.00012382,2]
[361716993,1747721441885,-689.0,0.00012382,2]
[361716994,1747721441895,-620.24013628,0.0001241,2]
[361716995,1747721441904,-689.0,0.0001241,2]
[361716996,1747721441915,-250.0,0.00012418,2]
[361716997,1747721441924,-200.0,0.00012418,2]
[361716998,1747721441934,-250.0,0.00012418,2]
[361716999,1747721441943,-200.0,0.00012418,2]
[361717000,1747721441960,-200.0,0.00012427,2]
[361717001,1747721441976,-689.0,0.00012437,2]
[361717002,1747721441988,-689.0,0.00012464,2]
[361717003,1747721441998,-898.16355582,0.0001247,2]
[361717004,1747721442008,-1251.26664699,0.0001247,2]
[361717005,1747721442018,-689.0,0.00012492,2]
[361717006,1747721442029,-379925.50655371,0.000125,2]
[361717007,1747721442039,-1000.0,0.000125,2]
[361717008,1747721442050,-1000.0,0.000125,2]
[361717009,1747721442060,-1000.0,0.000125,2]
[361717010,1747721442069,-1000.0,0.000125,2]
[361717011,1747721442079,-1000.0,0.000125,2]
[361717012,1747721442088,-1000.0,0.000125,2]
[361717013,1747721442098,-1000.0,0.000125,2]
[361717014,1747721442109,-1000.0,0.000125,2]
[361717015,1747721442119,-1000.0,0.000125,2]
[361717016,1747721442130,-1000.0,0.000125,2]
[361717017,1747721442140,-1000.0,0.000125,2]
[361717018,1747721442149,-1000.0,0.000125,2]
[361717019,1747721442161,-1000.0,0.000125,2]
[361717020,1747721442172,-1000.0,0.000125,2]
[361717021,1747721442181,-1000.0,0.000125,2]
[361717022,1747721442191,-1000.0,0.000125,2]
[361717023,1747721442201,-1000.0,0.000125,2]
[361717024,1747721442212,-1000.0,0.000125,2]
[361717025,1747721442225,-1000.0,0.000125,2]
[361717026,1747721442236,-1000.0,0.000125,2]
[361717027,1747721442245,-1000.0,0.000125,2]
[361717028,1747721442255,-1000.0,0.000125,2]
[361717029,1747721442266,-1000.0,0.000125,2]
[361717030,1747721442278,-1000.0,0.000125,2]
[361717031,1747721442289,-1000.0,0.000125,2]
[361717032,1747721442301,-1000.0,0.000125,2]
[361717033,1747721442312,-1000.0,0.000125,2]
[361717034,1747721442322,-1000.0,0.000125,2]
[361717035,1747721442331,-1000.0,0.000125,2]
[361717036,1747721442342,-1000.0,0.000125,2]
[361717037,1747721442352,-844.50958474,0.000125,2]
[361717038,1747721442362,-297.89607841,0.000125,2]
[361717039,1747721442371,-150.0,0.000125,2]
[361717040,1747721442382,-316.04,0.000125,2]
[361717041,1747721442391,-316.04,0.000125,2]
[361717042,1747721442401,-316.04,0.000125,2]
[361717043,1747721442411,-316.04,0.000125,2]
[361717044,1747721442420,-316.04,0.000125,2]
[361717045,1747721442430,-316.04,0.000125,2]
[361717046,1747721442440,-316.04,0.000125,2]
[361717047,1747721442450,-316.04,0.000125,2]
[361717048,1747721442459,-316.04,0.000125,2]
[361717049,1747721442469,-316.04,0.000125,2]
[361717050,1747721442479,-316.04,0.000125,2]
[361717051,1747721442488,-316.04,0.000125,2]
[361717052,1747721442498,-316.04,0.000125,2]
[361717053,1747721442508,-316.04,0.000125,2]
[361717054,1747721442518,-316.04,0.000125,2]
[361717055,1747721442528,-316.04,0.000125,2]
[361717056,1747721442538,-316.04,0.000125,2]
[361717057,1747721442548,-316.04,0.000125,2]
[361717058,1747721442558,-316.04,0.000125,2]
[361717059,1747721442568,-316.04,0.000125,2]
[361717060,1747721442578,-316.04,0.000125,2]
[361717061,1747721442588,-316.04,0.000125,2]
[361717062,1747721442598,-316.04,0.000125,2]
[361717063,1747721442607,-316.04,0.000125,2]
[361717064,1747721442617,-316.04,0.000125,2]
[361717065,1747721442627,-316.04,0.000125,2]
[361717066,1747721442636,-316.04,0.000125,2]
[361717067,1747721442646,-316.04,0.000125,2]
[361717068,1747721442656,-316.04,0.000125,2]
[361717069,1747721442666,-316.04,0.000125,2]
[361717070,1747721442676,-316.04,0.000125,2]
[361717071,1747721442686,-316.04,0.000125,2]
[361717072,1747721442695,-316.04,0.000125,2]
[361717073,1747721442705,-316.04,0.000125,2]
[361717074,1747721442715,-316.04,0.000125,2]
[361717075,1747721442724,-316.04,0.000125,2]
[361717076,1747721442733,-316.04,0.000125,2]
[361717077,1747721442742,-316.04,0.000125,2]
[361717078,1747721442752,-316.04,0.000125,2]
[361717079,1747721442762,-316.04,0.000125,2]
[361717080,1747721442771,-316.04,0.000125,2]
[361717081,1747721442780,-316.04,0.000125,2]
[361717082,1747721442789,-316.04,0.000125,2]
[361717083,1747721442799,-316.04,0.000125,2]
[361717084,1747721442808,-316.04,0.000125,2]
[361717085,1747721442818,-316.04,0.000125,2]
[361717086,1747721442828,-316.04,0.000125,2]
[361717087,1747721442837,-316.04,0.000125,2]
[361717088,1747721442846,-316.04,0.000125,2]
[361717089,1747721442856,-316.04,0.000125,2]
[361717090,1747721442865,-316.04,0.000125,2]
[361717091,1747721442875,-316.04,0.000125,2]
[361717092,1747721442884,-316.04,0.000125,2]
[361717093,1747721442894,-316.04,0.000125,2]
[361717094,1747721442905,-316.04,0.000125,2]
[361717095,1747721442914,-316.04,0.000125,2]
[361717096,1747721442924,-316.04,0.000125,2]
[361717097,1747721442934,-316.04,0.000125,2]
[361717098,1747721442943,-316.04,0.000125,2]
[361717099,1747721442953,-316.04,0.000125,2]
[361717100,1747721442962,-316.04,0.000125,2]
[361717101,1747721442973,-689.0,0.00012519,2]
[361717102,1747721442983,-339.91,0.00012531,2]
[361717103,1747721442992,-170.07,0.00012531,2]
[361717105,1747721443002,-339.99,0.00012531,2]
[361717106,1747721443011,-169.83,0.00012531,2]
[361717107,1747721443021,-1594.0,0.00012533,2]
[361717108,1747721443030,-154.1686952,0.00012541,2]
[361717109,1747721443039,-693.3919763,0.00012541,2]
[361717110,1747721443049,-689.0,0.00012547,2]
[361717111,1747721443059,-689.0,0.00012574,2]
[361717112,1747721443068,-689.0,0.00012601,2]
[361717113,1747721443078,-689.0,0.00012629,2]
[361717114,1747721443087,-696.68589277,0.00012656,2]
[361717115,1747721443097,-215.0738,0.00012758,2]
[361717116,1747721443107,-1000.0,0.00012785,2]
[361717117,1747721443117,-1100.0,0.00012876,2]
[361717118,1747721443126,-253.25,0.00012928,2]
[361717119,1747721443136,-4287.19786418,0.00013,2]
[361717120,1747721443146,-1550.49488036,0.00013,2]
[361717121,1747721443157,-5176.94150757,0.0001305,2]
[361717122,1747721443166,-668.65185757,0.00013089,2]
[361717123,1747721443176,-316.04,0.0001319,2]
[361717124,1747721443186,-316.04,0.0001319,2]
[361717125,1747721443196,-30224.82315405,0.000132,2]
[361717128,1747721444082,-2929.21133345,0.000132,2]
[361717129,1747721444095,-22353.79882893,0.000132,2]
[361717130,1747721444109,-10000.55574094,0.000132,2]
[361717131,1747721444122,-4920.58325379,0.000132,2]
[361717132,1747721444134,-356.88425761,0.000132,2]
[361717133,1747721444149,-288.07999384,0.000132,2]
[361717134,1747721444176,-500.0,0.000132,2]
[361717135,1747721444187,-487.89012847,0.000132,2]
[361717136,1747721444199,-723.21934277,0.000132,2]
[361717137,1747721444212,-385.22270092,0.000132,2]
[361717138,1747721444226,-1414.5329418,0.000132,2]
[361717139,1747721444237,-3094.86716903,0.000132,2]
[361717140,1747721444287,-151.0,0.0001225,2]
[361717141,1747721444299,-4176.4,0.000132,2]
[361717142,1747721444311,-13326.45816167,0.000132,2]
[361717143,1747721444322,-150.33,0.00013314,2]
[361717144,1747721444332,-150.0,0.00013314,2]
[361717145,1747721444342,-150.0,0.00013314,2]
[361717146,1747721444351,-1158.37,0.00013314,2]
[361717147,1747721444363,-150.0,0.00013314,2]
[361717148,1747721444372,-150.0,0.00013314,2]
[361717149,1747721444383,-150.0,0.00013314,2]
[361717150,1747721444394,-151.0,0.00013362,2]
[361717151,1747721444405,-800.22211036,0.00013362,2]
[361717152,1747721444417,-8330.90880795,0.00013368,2]
[361717153,1747721444427,-170.07,0.00013404,2]
[361717154,1747721444437,-500.0,0.0001347,2]
[361717155,1747721444447,-500.0,0.0001347,2]
[361717156,1747721444457,-500.0,0.0001347,2]
[361717157,1747721444468,-431.72341563,0.0001347,2]
[361717158,1747721444482,-68.27658437,0.0001347,2]
[361717159,1747721444492,-613.85476959,0.0001347,2]
[361717160,1747721444628,-386.14523041,0.0001347,2]
[361717161,1747721444638,-708.23919975,0.0001347,2]
[361717162,1747721444651,-291.76080025,0.0001347,2]
[361717163,1747721444662,-786.84982999,0.0001347,2]
[361717164,1747721444674,-213.15017001,0.0001347,2]
[361717165,1747721444684,-928.84982999,0.0001347,2]
[361717166,1747721444696,-71.15017001,0.0001347,2]
[361717167,1747721444706,-312.61385249,0.0001349,2]
[361717168,1747721444720,-3.42614751,0.0001349,2]
[361717169,1747721444730,-455.04885249,0.000135,2]
[361717170,1747721444743,-544.95114751,0.000135,2]
[361717171,1747721444754,-3354.64885249,0.000135,3]
[361717172,1747721444766,-11709.56358123,0.000135,3]
[361717173,1747721444776,-511.57153754,0.000135,2]
[361717174,1747721444786,-298.09766914,0.00013599,2]
[361717175,1747721444797,-463.53,0.00013625,2]
[361717176,1747721444808,-316.04,0.00013689,2]
[361717177,1747721444818,-316.04,0.00013689,2]
[361717178,1747721444828,-424.98,0.00013698,2]
[361717179,1747721444838,-5195.51,0.00013699,2]
[361717180,1747721444849,-5195.51,0.00013699,2]
[361717181,1747721444859,-5195.51,0.00013699,2]
[361717182,1747721444869,-5195.51,0.00013699,2]
[361717183,1747721444879,-5195.51,0.00013699,2]
[361717184,1747721444890,-5195.51,0.00013699,2]
[361717185,1747721444900,-5195.51,0.00013699,2]
[361717186,1747721444910,-5195.51,0.00013699,2]
[361717187,1747721444920,-5195.51,0.00013699,2]
[361717188,1747721444930,-5195.51,0.00013699,2]
[361717189,1747721444940,-5195.51,0.00013699,2]
[361717190,1747721444950,-5195.51,0.00013699,2]
[361717191,1747721444960,-5195.51,0.00013699,2]
[361717192,1747721444971,-5195.51,0.00013699,2]
[361717193,1747721444981,-5195.51,0.00013699,2]
[361717194,1747721444991,-5195.51,0.00013699,2]
[361717195,1747721445001,-5195.51,0.00013699,2]
[361717196,1747721445011,-1824.41301478,0.00013699,2]
[361717197,1747721445025,-3371.09698522,0.00013699,2]
[361717198,1747721445035,-2806.09008096,0.00013699,2]
[361717199,1747721445048,-362.90977656,0.00013699,2]
[361717200,1747721445060,-2026.51014248,0.00013699,2]
[361717201,1747721445069,-4635.89392317,0.00013699,2]
[361717202,1747721445081,-559.64292161,0.00013699,2]
[361717203,1747721445091,-200.0,0.00013699,2]
[361717204,1747721445100,-1000.0,0.00013699,2]
[361717205,1747721445110,-392.72206179,0.00013699,2]
[361717209,1747721445989,-170.07,0.000121,2]
[361717210,1747721446000,-7.01793821,0.00013699,2]
[361717211,1747721446010,-500.15036503,0.00013699,2]
[361717212,1747721446020,-502.12350183,0.00013699,2]
[361717213,1747721446030,-256.34835659,0.00013699,2]
[361717214,1747721446043,-244.21882093,0.00013699,2]
[361717215,1747721446053,-500.0,0.00013699,2]
[361717216,1747721446063,-501.55869295,0.00013699,2]
[361717217,1747721446074,-500.8206581,0.00013699,2]
[361717218,1747721446084,-500.0,0.00013699,2]
[361717219,1747721446094,-500.0,0.00013699,2]
[361717220,1747721446104,-500.28268793,0.00013699,2]
[361717221,1747721446114,-500.0,0.00013699,2]
[361717222,1747721446125,-500.0,0.00013699,2]
[361717223,1747721446134,-500.0,0.00013699,2]
[361717224,1747721446144,-151.0,0.00013699,2]
[361717225,1747721446155,-256.11916009,0.000137,2]
[361717226,1747721446173,-915.93556682,0.000137,2]
[361717227,1747721446187,-400.0,0.000137,2]
[361717228,1747721446235,-394.09247357,0.000137,2]
[361717229,1747721446246,-3180.636,0.000137,2]
[361717836,1747722318452,200.0,0.00027397,120]
[361717838,1747722403300,424.35,0.00010655,2]
[361717844,1747722622934,150.0,0.00011906,7]
[361717852,1747722632172,-262.3414547,0.00011899,2]
[361717853,1747722632184,-37.6585453,0.00011899,2]
[361717854,1747722632195,-345.1196,0.000119,2]
[361717855,1747722632204,-161.82074599,0.000119,2]
[361717856,1747722632214,-198.73177942,0.000119,2]
[361717857,1747722632223,-1147.0473758,0.000119,2]
[361717858,1747722632315,-406.09699576,0.000119,2]
[361717859,1747722632396,-2874.64984185,0.000119,2]
[361717860,1747722632407,-250.0,0.00011901,2]
[361717861,1747722632418,-200.0,0.00011902,2]
[361717862,1747722632429,-200.0,0.00011903,2]
[361717863,1747722632439,-250.0,0.00011906,2]
[361717864,1747722632451,-200.0,0.00011918,2]
[361717865,1747722632463,-161.57554527,0.00011968,2]
[361717866,1747722632474,-342.64138639,0.0001199,2]
[361717867,1747722632485,-300.0,0.00011998,2]
[361717868,1747722632496,-500.0,0.00011999,2]
[361717869,1747722632507,-500.0,0.00011999,2]
[361717870,1747722632518,-500.0,0.00011999,2]
[361717871,1747722632529,-500.0,0.00011999,2]
[361717872,1747722632539,-500.0,0.00011999,2]
[361717873,1747722632550,-500.0,0.00011999,2]
[361717874,1747722632560,-500.0,0.00011999,2]
[361717875,1747722632571,-273.39505375,0.00011999,2]
[361717876,1747722632584,-500.0,0.00011999,2]
[361717877,1747722632594,-524.99792834,0.00011999,2]
[361717878,1747722632604,-500.0,0.00011999,2]
[361717879,1747722632615,-500.0,0.00011999,2]
[361717880,1747722632626,-500.0,0.00011999,2]
[361717881,1747722632638,-500.0,0.00011999,2]
[361717882,1747722632648,-371.21123065,0.00011999,2]
[361717883,1747722632659,-202.0,0.00011999,2]
[361717884,1747722632670,-113333.51240925,0.00012,2]
[361717896,1747722633305,-332.26095277,0.00012,2]
[361717897,1747722633323,-908.8453059,0.00012,2]
[361717898,1747722633335,-4858.88,0.00012,2]
[361717899,1747722633348,-998.51788266,0.00012,2]
[361717900,1747722633361,-40196.53228432,0.00012,2]
[361717901,1747722638206,-171943.6271624,0.00012,2]
[361717902,1747722638222,-55200.01917795,0.00012,2]
[361717903,1747722638296,-2281.87364935,0.00012,2]
[361717904,1747722638309,-756.68409585,0.00012,2]
[361717905,1747722638320,-5281.6126398,0.00012,2]
[361717906,1747722638332,-3918.12635065,0.00012,2]
[361717907,1747722638344,-4887.00638255,0.00012,2]
[361717908,1747722638376,-3641.60303,0.00012,2]
[361717914,1747722640309,-250.63,0.00012,2]
[361717915,1747722640321,-18311.09590494,0.00012,2]
[361717916,1747722640333,-1581.25616873,0.00012,2]
[361717917,1747722640594,-554.17248,0.00012,2]
[361717925,1747722644445,-7012.91296592,0.00012,2]
[361717926,1747722644457,-7807.29397427,0.00012,2]
[361717927,1747722644472,-29261.4881965,0.00012,2]
[361717932,1747722646169,-17456.78971412,0.00012,2]
[361717933,1747722646180,-22541.59078588,0.00012,2]
[361717934,1747722646193,-5285.0568,0.00012,2]
[361717935,1747722646337,-1865.19501556,0.00012,2]
[361717936,1747722646357,-1874.60164405,0.00012,2]
[361717937,1747722646379,-3691.85594819,0.00012,2]
[361718010,1747722792441,505.059448,0.00026516,120]
[361718011,1747722795297,506.058053,0.00026516,120]
[361718015,1747723276715,26519.71,0.00011155,2]
[361718016,1747723279857,676.78029285,0.00027,120]
[361718017,1747723407214,200.0,0.00011071,2]
[361718018,1747723444796,184.86,0.0001097,2]
[361718019,1747723448943,184.86,0.00010973,2]
[361718020,1747723448981,184.86,0.00010975,2]
[361718021,1747723449019,184.86,0.00010978,2]
[361718022,1747723449296,184.86,0.00010981,2]
[361718023,1747723449507,184.86,0.00010984,2]
[361718024,1747723449710,184.86,0.00010987,2]
[361718025,1747723449922,184.86,0.0001099,2]
[361718026,1747723450137,184.86,0.00010993,2]
[361718027,1747723450355,184.86,0.00010996,2]
[361718028,1747723450572,184.86,0.00010998,2]
[361718029,1747723450776,184.86,0.00011001,2]
[361718030,1747723451005,184.86,0.00011004,2]
[361718031,1747723451209,184.86,0.00011007,2]
[361718032,1747723451440,184.86,0.0001101,2]
[361718033,1747723451648,184.86,0.00011013,2]
[361718034,1747723451869,184.86,0.00011016,2]
[361718035,1747723452086,184.86,0.00011019,2]
[361718036,1747723452292,184.86,0.00011021,2]
[361718037,1747723452504,184.86,0.00011024,2]
[361718038,1747723459652,452.99,9.096e-05,2]
[361718039,1747723547078,7750.32,0.00010973,2]
[361718040,1747723560702,745.63,0.00010973,2]
[361718041,1747723592274,6798.36,0.00010962,2]
[361718046,1747723612527,-193.50068686,0.00011275,2]
[361718047,1747723639541,250.0,0.00010829,2]
[361718048,1747723768579,736.2288,0.00011209,2]
[361718056,1747723831375,-575.07931314,0.00011275,2]
[361718057,1747723831388,-200.0,0.00011279,2]
[361718058,1747723831408,-166.81,0.00011291,2]
[361718059,1747723831418,-200.0,0.00011291,2]
[361718060,1747723831428,-1200.0,0.00011307,2]
[361718061,1747723831438,-300.0,0.00011307,2]
[361718062,1747723831448,-290.83024007,0.00011308,2]
[361718063,1747723831458,-500.0,0.00011308,2]
[361718064,1747723831467,-500.0,0.00011308,2]
[361718065,1747723831477,-500.0,0.00011308,2]
[361718066,1747723831486,-500.0,0.00011308,2]
[361718067,1747723831497,-500.0,0.00011308,2]
[361718068,1747723831506,-500.0,0.00011308,2]
[361718069,1747723831516,-168.15519269,0.00011308,2]
[361718070,1747723831525,-500.0,0.00011308,2]
[361718071,1747723831535,-500.0,0.00011308,2]
[361718072,1747723831544,-463.21739567,0.00011308,2]
[361718073,1747723831554,-384.13453849,0.00011308,2]
[361718074,1747723831564,-500.0,0.00011308,2]
[361718075,1747723831574,-500.0,0.00011308,2]
[361718076,1747723831583,-500.0,0.00011308,2]
[361718077,1747723831593,-500.0,0.00011308,2]
[361718078,1747723831602,-500.0,0.00011308,2]
[361718079,1747723831612,-500.0,0.00011308,2]
[361718080,1747723831622,-500.0,0.00011308,2]
[361718081,1747723831631,-482.40671478,0.00011308,2]
[361718082,1747723831642,-500.0,0.00011308,2]
[361718083,1747723831652,-500.0,0.00011308,2]
[361718084,1747723831663,-500.0,0.00011308,2]
[361718085,1747723831672,-500.0,0.00011308,2]
[361718086,1747723831684,-500.0,0.00011308,2]
[361718087,1747723831695,-500.0,0.00011308,2]
[361718088,1747723831706,-500.0,0.00011308,2]
[361718089,1747723831717,-500.0,0.00011308,2]
[361718090,1747723831727,-500.0,0.00011308,2]
[361718091,1747723831738,-500.0,0.00011308,2]
[361718092,1747723831748,-500.0,0.00011308,2]
[361718093,1747723831758,-500.0,0.00011308,2]
[361718094,1747723831767,-341.66043301,0.00011308,2]
[361718095,1747723831777,-500.0,0.00011308,2]
[361718096,1747723831786,-500.0,0.00011308,2]
[361718097,1747723831795,-500.0,0.00011308,2]
[361718098,1747723831805,-63210.00704215,0.00011309,2]
[361718099,1747723831825,-62201.18538434,0.00011309,2]
[361718100,1747723831837,-7503.62901673,0.00011309,2]
[361718102,1747723831864,-300.0,0.00011307,2]
[361718104,1747723831874,-835.03424949,0.00011309,2]
[361718107,1747723831886,-5008.53813225,0.00011309,2]
[361718109,1747723831898,-4050.0,0.00011309,2]
[361718111,1747723831910,-3529.05961605,0.00011309,2]
[361718114,1747723831941,-14662.34498423,0.00011309,2]
[361718117,1747723831955,-3430.86173256,0.00011309,2]
[361718119,1747723831967,-12549.88469912,0.00011309,2]
[361718121,1747723831979,-6099.9999999,0.00011309,2]
[361718123,1747723831990,-3305.08514318,0.00011309,2]
[361718125,1747723832000,-342.62,0.00011314,2]
[361718127,1747723832011,-151.0,0.00011321,2]
[361718129,1747723832021,-232.20882859,0.00011321,2]
[361718132,1747723832031,-154.1686952,0.00011321,2]
[361718134,1747723832041,-207.4,0.00011321,2]
[361718136,1747723832051,-668.65185757,0.00011321,2]
[361718138,1747723832061,-452.99,0.0001136,2]
[361718139,1747723832071,-365.87547546,0.00011373,2]
[361718140,1747723832082,-134.12452454,0.00011373,2]
[361718141,1747723832092,-500.0,0.00011373,2]
[361718142,1747723832101,-502.27405274,0.00011373,2]
[361718143,1747723832110,-500.0,0.00011373,2]
[361718144,1747723832120,-501.20366448,0.00011373,2]
[361718145,1747723832139,-170.41811685,0.00011373,2]
[361718146,1747723832149,-500.0,0.00011373,2]
[361718147,1747723832159,-288.17669469,0.00011373,2]
[361718148,1747723832168,-453.8029517,0.00011373,2]
[361718149,1747723832180,-46.1970483,0.00011373,2]
[361718150,1747723832191,-169.82613562,0.00011373,2]
[361718151,1747723832200,-454.90123552,0.00011373,2]
[361718152,1747723832210,-500.0,0.00011373,2]
[361718153,1747723832221,-129.07558056,0.00011515,2]
[361718154,1747723832234,-1105.80441944,0.00011515,2]
[361718155,1747723832243,-639.66488612,0.00011552,2]
[361718156,1747723832254,-1000.0,0.00011569,2]
[361718157,1747723832263,-363.96,0.00011717,2]
[361718158,1747723832273,-693.3919763,0.00011869,2]
[361718159,1747723832282,-2441.193,0.00011873,2]
[361718160,1747723832291,-172.027,0.00011873,2]
[361718161,1747723832301,-13812.22972305,0.00011873,2]
[361718162,1747723832323,-569.13267867,0.00011873,2]
[361718163,1747723832335,-9518.63759828,0.00011873,2]
[361718164,1747723832344,-24138.7596,0.00011899,2]
[361718165,1747723832353,-5313.1258077,0.000119,2]
[361718166,1747723837354,-3422.8809923,0.000119,2]
[361718167,1747723837364,-182.21591439,0.000119,2]
[361718168,1747723837374,-178.71471369,0.000119,2]
[361718169,1747723837385,-187.08023611,0.000119,2]
[361718170,1747723837395,-186.45876468,0.000119,2]
[361718171,1747723837406,-643.74549932,0.000119,2]
[361718172,1747723837418,-254.23857387,0.000119,2]
[361718173,1747723837430,-8814.2400013,0.000119,2]
[361718174,1747723837441,-272.94437588,0.000119,2]
[361718175,1747723837452,-182.21591438,0.00011968,2]
[361718176,1747723837463,-2238.0,0.00011973,2]
[361718177,1747723837475,-500.74484075,0.00011973,2]
[361718178,1747723837486,-1281.57515879,0.00011992,2]
[361718179,1747723837496,-231.76326273,0.00011999,2]
[361718180,1747723837507,-227436.23718871,0.00012,2]
[361718181,1747723837522,-5786.30309549,0.00012,2]
[361718182,1747723837535,-125376.78075585,0.00012,2]
[361718183,1747723837548,-6036.74016914,0.00012,2]
[361718184,1747723837561,-6046.85013542,0.00012,2]
[361718185,1747723837574,-775.44461026,0.00012,2]